[Event "1st Bella Italia International 2022"]
[Site "Lignano"]
[Date "2022.08.19"]
[Round "4.5"]
[White "Das, Sayantan"]
[Black "Aaron, Deepak"]
[Result "0-1"]
[ECO "C11"]
[WhiteElo "2449"]
[BlackElo "2221"]
[Annotator "TA"]
[PlyCount "122"]
[EventDate "2022.08.18"]
[EventCountry "ITA"]
[SourceTitle "playchess.com"]
[Source "ChessBase"]
[SourceQuality "1"]
[TimeControl "5400+30"]

{[%evp 16,122,12,8,21,8,21,17,22,34,26,22,19,22,33,20,31,22,30,23,17,11,22,0,25,33,34,46,53,54,48,53,42,54,70,64,68,12,14,0,0,0,0,-131,-148,-148,-139,-302,-311,-458,-464,-531,-459,-980,-104,-104,-93,-78,0,-56,175,158,352,-657,-655,-647,-647,-626,-602,-597,-297,-308,-262,-300,0,0,0,-295,-246,-288,-268,-250,-258,-256,-156,-247,-241,-371,-368,-405,-366,-492,-362,-641,-641,-610,-598,-12841,-12841,-12841,-12840,-12836,-12837,-12837,-12837,-12835,-12835,-12834,-2487]} 1. e4 {[%emt 0:00:04]} e6 {[%emt 0:11:17]} 2. d4 {[%emt 0:00:33]} d5 {[%emt 0:00:01]} 3. Nc3 {[%emt 0:00:13]} Nf6 {[%emt 0:00:05]} 4. e5 {[%emt 0:00:14]} Nfd7 {[%emt 0:00:01]} 5. f4 {[%emt 0:00:14]} c5 {[%emt 0:00:01]} 6. Nf3 {[%emt 0:00:14]} Nc6 {[%emt 0:00:03]} 7. Be3 {[%emt 0:00:27]} Be7 {[%emt 0:00:05]} 8. Qd2 {[%emt 0:00:44]} O-O {[%emt 0:00:16]} 9. dxc5 {[%emt 0:00:42]} Qa5 {[%emt 0:00:18] C11: French: Classical System: 4 e5 and 4 Bg5 dxe4.} 10. a3 {[%emt 0:00:49]} a6 {[%emt 0:00:10] Against Bb5} 11. Bd3 {[%emt 0:07:16] [#]} Nxc5 $146 {[%emt 0:01:37] The position is equal.} ({Predecessor:} 11... Bxc5 12. Bxc5 Nxc5 13. O-O Nxd3 14. Qxd3 h6 15. Qe3 Bd7 16. Rad1 Rac8 17. Ne2 Ne7 {1-0 (31) Heimann,A (2590)-Wichmann,C (2305) Dresden 2018}) 12. O-O {[%emt 0:05:10]} Nxd3 {[%emt 0:01:29]} 13. cxd3 {[%emt 0:00:50]} Qd8 {[%emt 0:04:46] White must now prevent ...d4.} 14. Qf2 {[%emt 0:03:46]} f6 {[%emt 0:01:13]} 15. Bb6 {[%emt 0:05:35]} Qe8 {[%emt 0:02:00]} 16. exf6 {[%emt 0:01:09]} Rxf6 {[%emt 0:02:47]} 17. Qe3 {[%emt 0:03:59]} Bd7 {[%emt 0:02:35]} 18. g3 {[%emt 0:05:36]} Qg6 {[%emt 0:04:40]} 19. d4 {[%emt 0:08:26][%cal Bd3d4,Bd4e5][%mdl 32]} Raf8 {[%emt 0:03:06]} 20. Ne2 {[%emt 0:02:57]} Qh5 {[%emt 0:11:46]} 21. Rae1 {[%emt 0:08:19]} h6 {[%emt 0:10:54]} 22. Ne5 {[%emt 0:06:08]} Nxe5 {[%emt 0:00:57]} 23. dxe5 {[%emt 0:00:35]} R6f7 {[%emt 0:10:23]} 24. Nd4 {[%emt 0:00:32]} Qg4 {[%emt 0:03:57]} 25. Kg2 {[%emt 0:04:56]} Bb5 {[%emt 0:09:23]} 26. Rf2 {[%emt 0:04:01]} (26. Rf3 $1 $14) 26... g5 $11 {[%emt 0:00:43][%cal Rg5f4]} 27. h3 {[%emt 0:05:11]} (27. Nxb5 gxf4 28. Qd4 (28. Qf3 Qxf3+ 29. Rxf3 axb5 $15) 28... axb5 $15) 27... gxf4 {[%emt 0:02:22]} 28. Rxf4 {[%emt 0:00:15]} Qg6 {[%emt 0:00:34] ...Rxf4 is the strong threat.} 29. Rg4 {[%emt 0:13:52]} (29. Rxf7 $1 $11 {was the only way to keep the balance.} Rxf7 30. Nxb5 axb5 31. Rc1) 29... Bg5 $17 {[%emt 0:00:19] Hoping for ...Bf1+.} 30. Nxb5 {[%emt 0:03:03]} axb5 {[%emt 0:00:25]} 31. h4 $2 {[%emt 0:00:58]} (31. Qc1 $17 Kh7 32. Qb1) 31... Rf3 $1 $19 {[%emt 0:04:07]} 32. Qd4 {[%emt 0:06:30]} (32. Qc5 $142 Qf5 33. Qb4) 32... Qc2+ $1 {[%emt 0:02:46]} 33. Kg1 {[%emt 0:00:33]} Qf5 {[%emt 0:06:21]} (33... Rd3 $2 34. Qc5 (34. Qb4 $2 Rff3 $19) 34... Qb3 35. Kh2 Rd2+ 36. Kh3 $19) 34. Kh2 {[%emt 0:03:39] [#]} (34. hxg5 $142 Rf1+ 35. Rxf1 Qxf1+ 36. Kh2 Qe2+ 37. Kh3) 34... Rd3 $2 {[%emt 0:01:05]} (34... Rc8 $1 $19 {[%cal Rc8c2]} 35. Re2 (35. Bc5 b6) 35... Rc4 36. hxg5 Rxd4 37. Rxd4 hxg5) 35. Qf4 $17 {[%emt 0:00:00] [#]} Qg6 {[%emt 0:01:15]} 36. Qb4 {[%emt 0:00:00] [#]} Qh5 {[%emt 0:01:26]} ({Better is} 36... Rdf3 $1 $17 {aiming for ...Qc2+.} 37. Rg1 (37. hxg5 $2 Qc2+ 38. Kh3 h5 $19) (37. Qxb5 Qf5 $15) (37. Bc5 R8f7) 37... Qc2+ 38. Rg2 Qf5) 37. Kg2 {[%emt 0:00:17] [#]} (37. Kh3 $11) 37... d4 $2 {[%emt 0:00:30]} 38. Ree4 $18 {[%emt 0:00:27]} Rff3 $2 {[%emt 0:01:52]} (38... Rc8 $16 {was called for.} 39. Rxd4 Rxd4 40. Qxd4 Rc4 41. Qd8+ Kf7 42. Qd7+ (42. Rxg5 hxg5 43. Qd7+ Kg8 $11) (42. hxg5 Qxg4 43. Qf6+ Kg8 $11) 42... Be7 43. Rxc4 bxc4) 39. Qe7 $4 {[%emt 0:01:46][%mdl 8192] [#]} (39. hxg5 Rf2+ $3 {[%mdl 512]} 40. Kxf2 Qh2+ 41. Kf1 Qh1+ 42. Kf2 Rf3+ 43. Ke2 Qf1+ 44. Kd2 Rd3+ 45. Kc2 Qd1#) (39. Rxd4 Rxg3+ 40. Rxg3 Qe2+ 41. Kh3 Qf1+ 42. Kh2 Rxg3 43. Kxg3 Qg1+ 44. Kh3 Qf1+ 45. Kh2 Qf2+ 46. Kh3 Qf1+ 47. Kg3 Qg1+ 48. Kh3 Qf1+ $11) (39. Bxd4 $18 Kh8 40. Bg1 (40. hxg5 Rf1 $16) (40. Qxb5 Bf4 $16)) 39... Rxg3+ $3 $19 {[%emt 0:00:29][%mdl 512]} 40. Kh2 {[%emt 0:00:00]} (40. Kh1 Rh3+) 40... Rh3+ {[%emt 0:00:43]} (40... Rxg4 41. Qxe6+ Qf7 42. Qxf7+ Kxf7 43. e6+ Ke7 44. Bc5+ Kf6 45. Rxg4 $11) (40... Qxh4+ 41. Rxh4 Bxe7 42. Rxh6 $17) 41. Kg2 {[%emt 0:00:00] [#]} Rdg3+ $3 {[%emt 0:00:33][%mdl 512]} 42. Kf2 {[%emt 0:00:17]} Rf3+ {[%emt 0:00:28]} (42... Rxg4 43. Qxe6+ Qf7+ 44. Qxf7+ Kxf7 45. Rxg4 Rxh4 46. Rxd4 $17) (42... Qg6 $142 {( -> ...Qf5+)} 43. Qd8+ (43. hxg5 Qf5+ 44. Rgf4 Rh2+ 45. Kf1 Qh3+ 46. Ke1 Rg1+) 43... Bxd8 44. Rxg6+ Rxg6 45. Bxd8 Rh2+ 46. Kf3 Rh3+ 47. Kf2 Rh2+ 48. Kf3 Rh3+ 49. Kf2) 43. Kg2 {[%emt 0:00:24] [#]} Rhg3+ $3 {[%emt 0:01:02][%mdl 512]} 44. Kh2 {[%emt 0:00:11] [#]} Rh3+ $2 {[%emt 0:01:00]} ({Not} 44... Rxg4 45. Qxe6+ Kh7 46. Rxg4 $11) (44... Qxh4+ $1 $19 {[%mdl 512]} 45. Rxh4 Bxe7 46. Rhg4+ Rxg4 47. Rxg4+ Kf7) 45. Kg2 $11 {[%emt 0:00:01]} Rhg3+ $2 $40 {[%emt 0:00:20][%mdl 8320] Black mounts an attack.} 46. Kh2 $1 $19 {[%emt 0:00:05] [#] White is on the road to losing.} Qxh4+ {[%emt 0:00:46][%mdl 512]} 47. Rxh4 {[%emt 0:00:26]} Bxe7 {[%emt 0:00:06] Really sharp!} 48. Rhg4+ {[%emt 0:01:07]} Rxg4 {[%emt 0:00:05]} 49. Rxg4+ {[%emt 0:00:06][%mdl 4096] Endgame KRB-KRB} Kf7 {[%emt 0:00:38] Threatens to win with ...Rf2+.} 50. Bxd4 {[%emt 0:00:31]} (50. Rxd4 $17 {was worth a try.} Rf2+ 51. Kg3 Rxb2 52. Rd7) 50... h5 {[%emt 0:00:24][%cal Bh6h5,Bh5h4,Bh4h3][%mdl 32]} 51. Re4 {[%emt 0:00:29]} (51. Rg2 $142) 51... Kg6 {[%emt 0:00:17]} 52. Re2 {[%emt 0:01:52]} Rd3 {[%emt 0:00:30]} 53. Bf2 {[%emt 0:00:17]} Kf5 {[%emt 0:00:21] Strongly threatening ...Bg5.} 54. Kg2 $2 {[%emt 0:00:17]} (54. Be3) 54... Bg5 {[%emt 0:00:25] Black is clearly winning.} 55. Bg3 {[%emt 0:00:44]} h4 {[%emt 0:00:17]} 56. Bh2 {[%emt 0:00:04]} h3+ {[%emt 0:00:21]} 57. Kf1 {[%emt 0:00:07]} Rd1+ {[%emt 0:00:32]} 58. Kf2 {[%emt 0:00:07]} Rd2 {[%emt 0:00:08]} 59. Rxd2 {[%emt 0:00:52]} Bxd2 {[%emt 0:00:01]} 60. Kf3 {[%emt 0:00:06]} Bc1 {[%emt 0:00:23]} 61. b3 {[%emt 0:00:05]} Bb2 {[%emt 0:00:18] Weighted Error Value: White=0.56/Black=0.39} 0-1

[Event "1st Bella Italia International 2022"]
[Site "Lignano"]
[Date "2022.08.19"]
[Round "4.6"]
[White "Jonkman, Harmen"]
[Black "Player, Edmund C"]
[Result "1-0"]
[ECO "C54"]
[WhiteElo "2373"]
[BlackElo "2202"]
[Annotator "TA"]
[PlyCount "165"]
[EventDate "2022.08.18"]
[EventCountry "ITA"]
[SourceTitle "playchess.com"]
[Source "ChessBase"]
[SourceQuality "1"]
[TimeControl "5400+30"]

{[%evp 18,165,0,0,0,0,26,20,18,14,47,45,58,63,65,42,56,19,47,41,54,42,54,41,60,0,58,73,105,0,0,-16,-28,-88,-90,-132,-147,-140,-147,-138,-103,-89,-72,-216,-67,-281,-277,-257,-31,-148,31,0,0,0,0,-3,115,-98,32,40,207,0,23,0,0,0,0,0,715,0,0,0,0,0,1554,68,70,70,69,69,69,69,69,34,34,34,34,34,34,34,34,34,34,34,34,34,34,34,34,34,34,34,34,34,34,34,34,34,34,34,34,34,34,34,34,34,34,34,34,34,34,0,34,34,34,34,34,34,34,34,34,34,34,34,34,8,8,8,8,0,29965,29965,6036,8,29981,29982,29984,29985,29985,85]} 1. e4 {[%emt 0:00:04]} e5 {[%emt 0:00:04]} 2. Bc4 {[%emt 0:00:57]} Nc6 {[%emt 0:00:22]} 3. Nf3 {[%emt 0:03:48]} Bc5 {[%emt 0:00:31]} 4. c3 {[%emt 0:01:14]} Nf6 {[%emt 0:01:47]} 5. d4 {[%emt 0:00:20]} exd4 {[%emt 0:02:06]} 6. e5 {[%emt 0:00:09]} d5 {[%emt 0:01:40]} 7. Be2 {[%emt 0:00:22]} Ne4 {[%emt 0:01:09]} 8. cxd4 {[%emt 0:00:07]} Bb4+ {[%emt 0:16:19]} 9. Bd2 {[%emt 0:03:24]} Nxd2 {[%emt 0:11:11]} 10. Nbxd2 {[%emt 0:00:06]} O-O {[%emt 0:00:47] C54: Giuoco Piano: 4 c3 Nf6, main lines with 5 d4 and 5 d3.} 11. O-O {[%emt 0:00:22] [#]} Re8 $146 {[%emt 0:08:17]} ({Predecessor:} 11... f6 12. Nb3 fxe5 13. Nxe5 Nxe5 14. dxe5 c6 15. f4 Bf5 16. Bd3 Ba5 17. Bxf5 Bb6+ 18. Kh1 Rxf5 {1-0 (32) Aronian,L (2775)-Ding,L (2801) London 2019}) 12. a3 {[%emt 0:07:52]} Bf8 {[%emt 0:01:27] The position is equal.} 13. h3 {[%emt 0:17:13]} f6 {[%emt 0:02:17][%cal Rf6e5]} 14. Bb5 {[%emt 0:01:36]} Re6 {[%emt 0:06:41][%cal Rf6e5]} 15. Re1 {[%emt 0:09:26]} fxe5 {[%emt 0:05:34]} 16. dxe5 {[%emt 0:00:29]} Ne7 {[%emt 0:11:25][%cal Bc6e7,Be7g6,Bg6h4][%mdl 32]} 17. b4 {[%emt 0:12:30]} Ng6 {[%emt 0:03:22]} 18. Nb3 {[%emt 0:01:08]} c6 {[%emt 0:02:46]} 19. Bf1 {[%emt 0:07:27]} Re8 {[%emt 0:06:52]} 20. Rc1 {[%emt 0:01:33]} Nh4 {[%emt 0:05:17]} 21. Nfd4 {[%emt 0:03:49]} (21. Nxh4 $14 Qxh4 22. g3) 21... Qg5 {[%emt 0:02:44]} (21... Ng6 $11) 22. g3 $14 {[%emt 0:27:34][%cal Bg2g3,Bg3g4][%mdl 32]} Ng6 {[%emt 0:01:09]} 23. Nf3 {[%emt 0:00:00]} (23. e6 $16) 23... Qh5 $11 {[%emt 0:01:17]} 24. g4 {[%emt 0:00:00]} Qh6 {[%emt 0:00:04] Threatens to win with ...Nf4.} 25. Qd4 {[%emt 0:00:00]} (25. Re3 $11) 25... Nf4 $17 {[%emt 0:01:23]} 26. Rc3 {[%emt 0:00:00]} Nxh3+ {[%emt 0:02:48]} 27. Bxh3 {[%emt 0:00:00]} Qxh3 {[%emt 0:00:02]} 28. Nh2 {[%emt 0:00:00]} Qh6 {[%emt 0:02:11][%cal Oa7a5]} 29. f4 {[%emt 0:00:00]} Qh4 {[%emt 0:00:39]} 30. Qd1 {[%emt 0:00:00]} (30. Re2 $17 {was called for.}) 30... g6 {[%emt 0:02:15]} (30... a5 $1 $19 {[%cal Ra5b4]} 31. Nxa5 d4) 31. Nd4 $2 {[%emt 0:00:00]} (31. Kg2 $1 $15) 31... a5 $19 {[%emt 0:00:49]} 32. b5 {[%emt 0:00:00]} cxb5 $2 {[%emt 0:00:36]} (32... c5 $19 33. Ne2 Bxg4 34. Nxg4 Qxg4+ 35. Ng3 Qxd1 36. Rxd1 Rad8) 33. Nxb5 {[%emt 0:00:00]} (33. Kg2 $1 $15) 33... Rd8 $2 {[%emt 0:00:15]} (33... d4 $17 34. Rd3 (34. Nxd4 $2 b6 $19) 34... Rb8) 34. Kg2 {[%emt 0:01:50][%mdl 1024] White has compensation.} d4 {[%emt 0:00:39]} 35. Rh3 {[%emt 0:00:11]} Qe7 {[%emt 0:00:03]} 36. Nd6 {[%emt 0:00:16] Prevents Qf7.} Qe6 {[%emt 0:00:52]} (36... Ra6 $11 {remains equal.}) 37. Ne4 $2 {[%emt 0:02:48] 0x0.001682b49db1dp-1022s more active pieces. The black rooks are badly placed. Pair of Knights!} (37. f5 $1 $16 {[%cal Rf5e6] is forced if you want to stay better.} Qd5+ 38. Kg1) 37... Bg7 {[%emt 0:00:01]} (37... Be7 $1 $17 {...b5 is the strong threat.} 38. Nf2 Qa2) 38. Rxh7 $14 {[%emt 0:01:04] aiming for Ng5.} b5 $2 {[%emt 0:00:49]} (38... Qa2+ $14 39. Re2 Qxa3) 39. Ng5 $2 {[%emt 0:00:53]} ({Better is} 39. Nf6+ $1 $18 Bxf6 40. exf6 Qxf6 41. Ree7) 39... Bb7+ {[%emt 0:00:12]} 40. Kg3 {[%emt 0:00:10]} Qa2 {[%emt 0:00:36] ( -> ...Qg2+)} 41. Nhf3 {[%emt 0:00:48]} Rac8 $1 {[%emt 0:00:49] And now ...Rc2 would win.} 42. Qd3 {[%emt 0:00:36] The board is on fire.} Qc2 $2 {[%emt 0:00:34][%mdl 8192]} (42... Bxf3 $11 43. Rh2 (43. Qxf3 $2 Rc3 $19) 43... Rc3 44. Rxa2 Rxd3 45. Nxf3 Rc8) 43. Qxb5 $2 {[%emt 0:00:32]} ({White should play} 43. Qxc2 $18 Rxc2 44. Rxg7+ $1 {[%mdl 512]} Kxg7 45. Ne6+ Kg8 46. Nxd8 Bxf3 47. Kxf3) 43... Bxf3 $11 {[%emt 0:00:24]} 44. Rxg7+ $1 {[%emt 0:00:38]} Kxg7 {[%emt 0:00:11]} 45. Nxf3 {[%emt 0:00:08]} Rb8 $2 {[%emt 0:00:55][%mdl 8192] [#]} (45... Qc5 $11 46. Qb7+ Rc7) 46. Qxa5 $2 {[%emt 0:00:13]} ({White must play} 46. Qa6 $1 $18 {[%cal Ra6f6]} Rd7 47. Qf6+ (47. f5 gxf5 48. Qf6+ Kg8 $11) 47... Kg8 48. e6) 46... Qc6 {[%emt 0:00:45][%cal Ob8b3] Strongly threatening ...Rb3!} 47. e6 {[%emt 0:00:23]} Rb3 {[%emt 0:00:22]} 48. Qa7+ {[%emt 0:01:51]} Qb7 {[%emt 0:00:12]} 49. Qxb7+ {[%emt 0:00:06]} Rxb7 {[%emt 0:00:02] [#]} 50. Nxd4 $1 $14 {[%emt 0:00:11][%mdl 4096] Endgame KRR-KRN} Ra7 {[%emt 0:01:20] [#]} 51. Re3 $1 {[%emt 0:00:30]} Rxd4 {[%emt 0:00:34]} 52. e7 {[%emt 0:00:04]} Ra8 {[%emt 0:00:02]} 53. e8=Q {[%emt 0:00:08]} Rxe8 {[%emt 0:00:04]} 54. Rxe8 {[%emt 0:00:07] KR-KR} Rd3+ {[%emt 0:00:02]} 55. Kh4 {[%emt 0:00:50]} Rxa3 {[%emt 0:00:01]} 56. Kg5 {[%emt 0:00:42]} Ra5+ {[%emt 0:00:43]} 57. Re5 {[%emt 0:00:07]} Ra7 {[%emt 0:00:02]} 58. Rd5 {[%emt 0:00:37]} Rb7 {[%emt 0:00:11]} 59. Kh4 {[%emt 0:00:07]} Ra7 {[%emt 0:00:18]} 60. Kg3 {[%emt 0:00:20]} Ra3+ {[%emt 0:00:11]} 61. Kf2 {[%emt 0:00:07]} Rb3 {[%emt 0:01:25]} 62. Re5 {[%emt 0:00:52]} Ra3 {[%emt 0:00:44]} 63. Re3 {[%emt 0:00:02]} Ra4 {[%emt 0:00:40]} 64. Kf3 $1 {[%emt 0:00:02]} Rb4 {[%emt 0:00:48]} 65. Rd3 {[%emt 0:00:16]} Rb7 {[%emt 0:01:17]} 66. Rd4 {[%emt 0:00:26]} Re7 {[%emt 0:00:38]} 67. Rd5 {[%emt 0:00:21]} Kf7 {[%emt 0:00:35]} 68. Rd6 {[%emt 0:00:49]} Kg7 {[%emt 0:00:20]} 69. Rd3 {[%emt 0:00:09]} Kf7 {[%emt 0:00:19]} 70. Rc3 {[%emt 0:01:14]} Kg7 {[%emt 0:00:14]} 71. Re3 {[%emt 0:00:22]} Ra7 {[%emt 0:00:10]} 72. Rb3 {[%emt 0:00:48]} Re7 {[%emt 0:00:17]} 73. Rb4 {[%emt 0:00:12]} Kf7 {[%emt 0:00:18]} 74. Rb5 {[%emt 0:00:08]} Kg7 {[%emt 0:00:25]} 75. Rb6 {[%emt 0:01:13]} Ra7 {[%emt 0:01:38]} 76. Ke4 {[%emt 0:03:49]} Ra4+ {[%emt 0:00:40]} 77. Ke5 {[%emt 0:00:00]} g5 {[%emt 0:00:57]} 78. Rb7+ {[%emt 0:00:00]} Kg8 $2 {[%emt 0:00:14][%mdl 8192]} (78... Kh6 $11) 79. f5 {[%emt 0:00:00][%cal Bf4f5,Bf5f6][%mdl 32]} Rxg4 {[%emt 0:00:13]} 80. Kf6 $2 {[%emt 0:00:00]} (80. f6 $18 {Kf5 would kill now.} Rf4 81. Ke6) 80... Ra4 $2 {[%emt 0:00:45][%mdl 8192] [#]} (80... Rd4 $11) 81. Kg6 $1 {[%emt 0:00:00][%cal Rb7b8] White mates.} ({Weaker is} 81. Rb8+ Kh7 $11) 81... Kf8 {[%emt 0:00:51]} 82. f6 {[%emt 0:00:21][%cal Rb7b8]} Re4 {[%emt 0:00:29]} 83. Rb8+ {[%emt 0:03:09] What a fight!  Weighted Error Value: White=0.54/Black=0.41} 1-0

[Event "1st Bella Italia International 2022"]
[Site "Lignano"]
[Date "2022.08.19"]
[Round "4.7"]
[White "Bommini Mounika Akshaya"]
[Black "Bettalli, Francesco"]
[Result "1-0"]
[ECO "A56"]
[WhiteElo "2107"]
[BlackElo "2237"]
[Annotator "NA RC"]
[PlyCount "91"]
[EventDate "2022.08.18"]
[EventCountry "ITA"]
[SourceTitle "playchess.com"]
[Source "ChessBase"]
[SourceQuality "1"]
[TimeControl "5400+30"]

1. d4 {[%emt 0:08:26]} Nf6 {[%emt 0:00:38]} 2. c4 {[%emt 0:00:07]} c5 {[%emt 0:00:06]} 3. d5 {[%emt 0:00:08]} a6 {[%emt 0:00:06]} 4. a4 {[%emt 0:00:50]} d6 {[%emt 0:00:08]} 5. Nc3 {[%emt 0:00:09]} g6 {[%emt 0:00:05]} 6. e4 {[%emt 0:00:22]} Bg7 {[%emt 0:00:07]} 7. h3 {[%emt 0:00:25]} e6 {[%emt 0:00:09]} 8. Nf3 {[%emt 0:00:24]} Qe7 {[%emt 0:02:32]} 9. Bd3 {[%emt 0:06:45]} a5 {[%emt 0:00:21]} 10. O-O {[%emt 0:03:35]} e5 {[%emt 0:00:05]} 11. Ne1 {[%emt 0:12:41]} Nh5 {[%emt 0:04:40]} 12. Ne2 {[%emt 0:03:55]} O-O {[%emt 0:04:41]} 13. g4 {[%emt 0:06:12]} Nf6 {[%emt 0:01:31]} 14. Ng3 {[%emt 0:02:24]} h5 {[%emt 0:02:47]} 15. Bg5 {[%emt 0:12:47]} Qd7 {[%emt 0:04:39]} 16. f3 {[%emt 0:02:45]} Nh7 {[%emt 0:02:28]} 17. Bd2 {[%emt 0:00:42]} Qe7 {[%emt 0:01:22]} 18. Ng2 {[%emt 0:01:37]} Bf6 {[%emt 0:01:06]} 19. Kh2 {[%emt 0:06:00]} Kg7 {[%emt 0:02:16]} 20. Qe1 {[%emt 0:04:41]} hxg4 {[%emt 0:03:11]} 21. hxg4 {[%emt 0:03:09]} Rh8 {[%emt 0:00:23]} 22. Ne3 {[%emt 0:03:31]} Ng5+ {[%emt 0:04:27]} 23. Kg2 {[%emt 0:00:07]} Nh3 {[%emt 0:00:32]} 24. Ne2 {[%emt 0:00:55]} Bh4 {[%emt 0:02:20]} 25. Qc1 {[%emt 0:00:48]} Bd7 {[%emt 0:03:03]} 26. Be1 {[%emt 0:04:01]} Na6 {[%emt 0:01:41]} 27. Rh1 {[%emt 0:01:46]} Bxe1 {[%emt 0:01:26]} 28. Qxe1 {[%emt 0:00:29]} Qg5 {[%emt 0:02:07]} 29. Nc2 {[%emt 0:04:41]} Nf4+ {[%emt 0:00:48]} 30. Nxf4 {[%emt 0:00:11]} Rxh1 {[%emt 0:00:11]} 31. Qxh1 {[%emt 0:00:34]} exf4 {[%emt 0:00:18]} 32. Qe1 {[%emt 0:01:19]} Bxg4 {[%emt 0:03:06]} 33. fxg4 {[%emt 0:01:07]} Qxg4+ {[%emt 0:00:04]} 34. Kf2 {[%emt 0:00:07]} Qg3+ {[%emt 0:03:13]} 35. Ke2 {[%emt 0:00:08]} f3+ {[%emt 0:00:04]} 36. Kd2 {[%emt 0:00:20]} Qg5+ {[%emt 0:01:15]} 37. Qe3 {[%emt 0:01:54]} Qg2+ {[%emt 0:00:01]} 38. Kc3 {[%emt 0:00:10]} Rh8 {[%emt 0:02:02]} 39. Rf1 {[%emt 0:01:41]} Rh3 {[%emt 0:02:23]} 40. Ne1 {[%emt 0:00:08]} Qg3 {[%emt 0:00:01]} 41. Rxf3 {[%emt 0:01:22]} Qe5+ {[%emt 0:00:07]} 42. Kb3 {[%emt 0:00:06]} Rh1 {[%emt 0:01:23]} 43. Rxf7+ {[%emt 0:00:51]} Kg8 {[%emt 0:48:07]} 44. Rf1 {[%emt 0:01:57]} Rh2 {[%emt 0:00:00]} 45. Rf2 {[%emt 0:00:26]} Rh1 {[%emt 0:00:00]} 46. Qf3 {[%emt 0:00:36]} 1-0

[Event "1st Bella Italia International 2022"]
[Site "Lignano"]
[Date "2022.08.19"]
[Round "4.8"]
[White "Urbani, Gabriel"]
[Black "Titze, Leo"]
[Result "1-0"]
[ECO "B35"]
[WhiteElo "2046"]
[BlackElo "2071"]
[Annotator "NA RC"]
[PlyCount "83"]
[EventDate "2022.08.18"]
[EventCountry "ITA"]
[SourceTitle "playchess.com"]
[Source "ChessBase"]
[SourceQuality "1"]
[TimeControl "5400+30"]

1. e4 {[%emt 0:00:03]} c5 {[%emt 0:07:59]} 2. Nf3 {[%emt 0:00:08]} Nc6 {[%emt 0:00:03]} 3. d4 {[%emt 0:00:07]} cxd4 {[%emt 0:00:05]} 4. Nxd4 {[%emt 0:00:05]} g6 {[%emt 0:00:09]} 5. Be3 {[%emt 0:00:26]} Bg7 {[%emt 0:02:50]} 6. Nc3 {[%emt 0:00:23]} Nf6 {[%emt 0:00:10]} 7. Bc4 {[%emt 0:00:42]} O-O {[%emt 0:00:10]} 8. Bb3 {[%emt 0:00:16]} Re8 {[%emt 0:00:06]} 9. f3 {[%emt 0:03:36]} e6 {[%emt 0:00:44]} 10. Qd2 {[%emt 0:03:55]} d5 {[%emt 0:01:54]} 11. Nxc6 {[%emt 0:14:36]} bxc6 {[%emt 0:00:12]} 12. O-O-O {[%emt 0:01:55]} Qa5 {[%emt 0:20:12]} 13. Kb1 {[%emt 0:07:17]} Kh8 {[%emt 0:01:14]} 14. Bh6 {[%emt 0:04:26]} dxe4 {[%emt 0:12:36]} 15. Nxe4 {[%emt 0:10:49]} Qxd2 {[%emt 0:01:00]} 16. Bxg7+ {[%emt 0:01:24]} Kxg7 {[%emt 0:00:03]} 17. Rxd2 {[%emt 0:03:39]} Nxe4 {[%emt 0:01:00]} 18. fxe4 {[%emt 0:00:03]} c5 {[%emt 0:00:51]} 19. e5 {[%emt 0:08:03]} Bb7 {[%emt 0:01:40]} 20. Rhd1 {[%emt 0:03:39]} Bc6 {[%emt 0:00:49]} 21. g3 {[%emt 0:01:28]} Bf3 {[%emt 0:05:26]} 22. Rf1 {[%emt 0:00:29]} Bc6 {[%emt 0:04:20]} 23. Rd6 {[%emt 0:02:24]} Rac8 {[%emt 0:01:40]} 24. Rfd1 {[%emt 0:01:53]} Kf8 {[%emt 0:01:23]} 25. Kc1 {[%emt 0:04:25]} Ke7 {[%emt 0:01:50]} 26. Kd2 {[%emt 0:03:29]} Red8 {[%emt 0:03:03]} 27. Kc3 {[%emt 0:02:23]} Rxd6 {[%emt 0:00:55]} 28. Rxd6 {[%emt 0:00:32]} g5 {[%emt 0:04:01]} 29. Bc4 {[%emt 0:04:32]} Rc7 {[%emt 0:03:56]} 30. b3 {[%emt 0:02:16]} Bb7 {[%emt 0:02:07]} 31. a4 {[%emt 0:02:27]} Rd7 {[%emt 0:03:09]} 32. Rxd7+ {[%emt 0:00:40]} Kxd7 {[%emt 0:00:02]} 33. Bd3 {[%emt 0:00:45]} Bd5 {[%emt 0:01:58]} 34. Bxh7 {[%emt 0:00:18]} a5 {[%emt 0:00:21]} 35. h4 {[%emt 0:02:31]} gxh4 {[%emt 0:00:41]} 36. gxh4 {[%emt 0:00:02]} Ke7 {[%emt 0:00:19]} 37. Kd3 {[%emt 0:01:07]} Kf8 {[%emt 0:01:12]} 38. Be4 {[%emt 0:00:20]} Kg7 {[%emt 0:00:28]} 39. Bxd5 {[%emt 0:00:17]} exd5 {[%emt 0:00:02]} 40. c3 {[%emt 0:00:15]} f5 {[%emt 0:03:25]} 41. exf6+ {[%emt 0:00:14]} Kxf6 {[%emt 0:00:04]} 42. b4 {[%emt 0:00:09]} 1-0

[Event "1st Bella Italia International 2022"]
[Site "Lignano"]
[Date "2022.08.19"]
[Round "4.9"]
[White "Lapiccirella, Daniele"]
[Black "Tencati, Giuseppe"]
[Result "1/2-1/2"]
[ECO "D80"]
[WhiteElo "2173"]
[BlackElo "2055"]
[Annotator "ChessBase"]
[PlyCount "35"]
[EventDate "2022.08.18"]
[EventCountry "ITA"]
[SourceTitle "playchess.com"]
[Source "ChessBase"]
[SourceQuality "1"]
[TimeControl "5400+30"]

1. d4 {[%emt 0:00:03]} Nf6 {[%emt 0:00:06]} 2. c4 {[%emt 0:00:12]} g6 {[%emt 0:00:09]} 3. Nc3 {[%emt 0:00:06]} d5 {[%emt 0:00:19]} 4. Nf3 {[%emt 0:00:05]} Bg7 {[%emt 0:00:27]} 5. Bg5 {[%emt 0:00:08]} Ne4 {[%emt 0:00:58]} 6. Bf4 {[%emt 0:00:07]} Nxc3 {[%emt 0:00:37]} 7. bxc3 {[%emt 0:00:05]} c5 {[%emt 0:00:59]} 8. cxd5 {[%emt 0:01:06]} Qxd5 {[%emt 0:02:31]} 9. e3 {[%emt 0:00:07]} cxd4 {[%emt 0:00:57]} 10. cxd4 {[%emt 0:00:08]} O-O {[%emt 0:01:06]} 11. Be2 {[%emt 0:00:14]} Nc6 {[%emt 0:00:56]} 12. O-O {[%emt 0:00:18]} Bf5 {[%emt 0:00:49]} 13. Qa4 {[%emt 0:00:54]} Qa5 {[%emt 0:02:12]} 14. Qxa5 {[%emt 0:00:42]} Nxa5 {[%emt 0:00:08]} 15. Nd2 {[%emt 0:00:40]} Rfc8 {[%emt 0:01:27]} 16. Rfc1 {[%emt 0:12:29]} Rxc1+ {[%emt 0:01:56]} 17. Rxc1 {[%emt 0:00:05]} Rc8 {[%emt 0:00:08]} 18. Rxc8+ {[%emt 0:00:12]} 1/2-1/2